Cogmind - Beta 16 @@@ ROGUE MODE // 2026.01.13 @ 23:37:30 Player: FR-13D Result: Destroyed by U7-A0R(g) with Salvaging Laser Performance ------------- Evolutions (0) 0 Regions Visited (5) 1000 Robots Destroyed (38) 190 Value Destroyed (942) 942 Prototype IDs (9) 180 Alien Tech Used (0) 0 Bonus (800) 800 TOTAL SCORE: 3112 Bonus ------- Registered with UFD 300 Met Optimus in HQ 500 Cogmind --------- Core Integrity 0/250 Matter 300/300 Energy 250/250 System Corruption 0% Temperature Warm (142) Movement Treading (480) Ox4 Location -8/Scraptown Parts ------- > --- POWER (1) -------- Ion Engine > --- PROPULSION (2) --- Light Treads > --- UTILITY (2) ------ Huge Storage Unit Hardened Light Armor Plating > --- WEAPON (2) ------- Improved Light Cannon Companion Sword > --- INVENTORY (25) --- Light Treads Wheel Wheel Improved Heat Sink Disposable Heat Sink Deep Structural Scanner Signal Interpreter Seismic Detector 0b10 Decoder Chip [Generic] Targeting Computer Targeting Computer ECM Suite Hardened Light Armor Plating Hardened Light Armor Plating Hardened Light Armor Plating Hardened Light Armor Plating Hardened Light Armor Plating Mapping Drone Bay (3/3) Heavy Assault Rifle Improved Light Cannon Mining Laser Plasma Cutter Multitool Peak State ------------ > --- POWER ------------ Ion Engine > --- PROPULSION ------- Wheel Wheel > --- UTILITY ---------- Huge Storage Unit Hardened Light Armor Plating > --- WEAPON ----------- Improved Light Cannon Companion Sword > --- INVENTORY -------- Light Treads Light Treads Light Treads Wheel Wheel Improved Heat Sink Disposable Heat Sink Deep Structural Scanner Signal Interpreter Seismic Detector 0b10 Decoder Chip [Generic] Targeting Computer Targeting Computer ECM Suite Hardened Light Armor Plating Hardened Light Armor Plating Hardened Light Armor Plating Hardened Light Armor Plating Hardened Light Armor Plating Mapping Drone Bay Heavy Assault Rifle Improved Light Cannon Mining Laser Plasma Cutter Multitool [Rating: 18] Favorites ----------- Power Ion Engine Engine Ion Engine Propulsion Wheel Treads Light Treads Wheel Wheel Utility Huge Storage Unit Device Mapping Drone Bay Storage Huge Storage Unit Protection Hardened Light Armor Plating Weapon Improved Light Cannon Energy Gun Medium Laser Ballistic Gun Assault Rifle Ballistic Cannon Improved Light Cannon Special Weapon Multitool Slashing Weapon Companion Sword Build | -11 -10 -10 -10 -8 -8 ------- Run | Yrd Mat Min Sub Rec Scr Slots Evolved . | . . . . . . Power . | . . . . . . Propulsion . | . . . . . . Utility . | . . . . . . Weapon . | . . . . . . Parts Attached 39 | 8 13 4 2 5 7 Power 4 | 1 1 1 . 1 . Engine 4 | 1 1 1 . 1 . Core . | . . . . . . Reactor . | . . . . . . Propulsion 15 | 3 7 2 1 1 1 Treads 6 | . 2 2 . 1 1 Leg . | . . . . . . Wheel 9 | 3 5 . 1 . . Hover . | . . . . . . Flight . | . . . . . . Utility 11 | 2 3 1 . 1 4 Device 4 | 1 . 1 . . 2 Storage 2 | 1 1 . . . . Processor . | . . . . . . Hackware . | . . . . . . Protection 5 | . 2 . . 1 2 Artifact . | . . . . . . Weapon 9 | 2 2 . 1 2 2 Energy Gun 1 | . 1 . . . . Energy Cannon . | . . . . . . Ballistic Gun 2 | 2 . . . . . Ballistic Cannon 4 | . 1 . 1 2 . Launcher . | . . . . . . Special Weapon 1 | . . . . . 1 Impact Weapon . | . . . . . . Slashing Weapon 1 | . . . . . 1 Piercing Weapon . | . . . . . . Special Melee Weapon . | . . . . . . Unidentified Prototypes 1 | . . . . . 1 Parts Lost 3 | . . . . . 3 Power . | . . . . . . Propulsion 3 | . . . . . 3 Utility . | . . . . . . Weapon . | . . . . . . Highest Loss Streak 3 | . . . . . 3 To Critical Strikes . | . . . . . . Average Backups 22 | 3 15 25 24 24 23 Power . | . 1 1 1 . . Propulsion 5 | 1 4 6 5 5 6 Utility 12 | . 8 13 13 13 13 Weapon 2 | . 1 4 4 4 2 Tool/Special . | . . . . . . Unused Backups 19 | . 3 . . 1 15 Power . | . . . . . . Propulsion 3 | . . . . 1 2 Utility 12 | . 2 . . . 10 Weapon 3 | . 1 . . . 2 Tool/Special 1 | . . . . . 1 Average Slot Usage (%) 96 | . 99 100 100 98 95 Engine 14 | . 14 14 14 14 14 Treads 1 | . 2 5 10 . . Wheel 26 | . 25 22 17 27 27 Device 7 | . 3 11 6 . 9 Storage 13 | . 14 14 14 14 13 Protection 6 | . 10 2 7 14 4 Energy Gun 2 | . 13 14 . . . Ballistic Gun 1 | . 11 . . . . Ballistic Cannon 21 | . 3 14 27 26 23 Peak Build Rating 18 | 7 12 13 13 14 18 Average Rating 13 | 5 9 11 12 13 14 On Entrance 8 | . 7 12 11 13 9 Avg Prop Armor Cover (%) 4 | . . . . 4 . Naked Turns . | . . . . . . Heaviest Build 98 | 14 96 92 98 98 98 Greatest Support 40 | 26 40 20 40 20 40 Greatest Overweight (x) 9 | . 9 4 4 9 9 Average Overweight (x) 3 | . 3 4 3 5 3 Largest Inventory Capacity 25 | 8 25 25 25 25 25 Average Capacity 23 | 7 22 25 25 25 23 Most Carried 25 | 8 25 25 25 25 25 Average Carried 22 | 3 15 25 24 24 23 Final Capacity 25 | 8 25 25 25 25 25 Final Carried 25 | 7 25 25 25 25 23 Class Distribution -------------------- 95% | Mutant 4% | Scavenger-Mutant Dominant Class ---------------- Mutant | -10/Materials Scavenger-Mutant | -10/Mines Mutant | -10/Subcaves Mutant | -8/Recycling Mutant | -8/Scraptown Resources | -11 -10 -10 -10 -8 -8 ----------- Run | Yrd Mat Min Sub Rec Scr Matter Collected 1424 | 320 382 152 225 209 136 Remotely . | . . . . . . Salvage Created 1192 | 119 551 144 142 201 35 Parts 71 | 6 32 5 13 12 3 Haulers Intercepted 2 | . 2 . . . . Recyclers Shooed . | . . . . . . Parts Field Recycled . | . . . . . . Retrieved Matter . | . . . . . . Parts Self-Destructed 11 | . . . 11 . . Prevented . | . . . . . . Parts Restored . | . . . . . . Kills | -11 -10 -10 -10 -8 -8 ------- Run | Yrd Mat Min Sub Rec Scr Combat Hostiles Destroyed 26 | . 12 4 6 3 1 Melee 1 | . . . . . 1 Guns 13 | . 12 . 1 . . Cannons 12 | . . 4 5 3 . Classes Destroyed 11 | 2 5 . 3 . 1 Worker 2 | . 2 . . . . Builder 2 | . 2 . . . . Tunneler 2 | 2 . . . . . Hauler 2 | . 2 . . . . Recycler 2 | 1 . . . 1 . Turret 2 | . . . 2 . . Swarmer 6 | . 3 . 3 . . Grunt 14 | . 9 4 1 . . Sentry 4 | . . . 1 3 . Subdweller 1 | . . . 1 . . Federalist 1 | . . . . . 1 Best Kill Streak 4 | 3 4 4 3 1 1 Combat Bots Only 4 | . 4 4 3 1 1 Max Kills in Single Turn 2 | 1 2 1 1 1 1 Gunslinging . | . . . . . . Exploded . | . . . . . . Melee 1 | . . . . . 1 Uniques/NPCs Destroyed . | . . . . . . Combat | -11 -10 -10 -10 -8 -8 -------- Run | Yrd Mat Min Sub Rec Scr Hostile Shots Fired 258 | . 48 39 106 2 63 Missed 75 | . 13 11 39 1 11 Hits 183 | . 35 28 67 1 52 Projectile 183 | . 35 28 67 1 52 Critical Strikes 3 | . . . . . 3 Damage Taken 2053 | . 390 334 570 13 746 Core 250 | . 41 64 77 . 68 Absorbed by Shields . | . . . . . . Core Remaining (%) 100 | 100 . . . . . Volleys Fired 111 | 10 59 14 24 4 . Largest 2 | 2 2 2 2 2 . Hottest 83 | 40 83 83 83 66 . Shots Fired 199 | 20 103 20 48 8 . Gun 123 | 20 94 6 3 . . Cannon 76 | . 9 14 45 8 . Launcher . | . . . . . . Special . | . . . . . . Kinetic 138 | 20 51 14 45 8 . Thermal 61 | . 52 6 3 . . Explosive . | . . . . . . Electromagnetic . | . . . . . . Robot Hit Streak 16 | 14 16 13 3 8 . Robot Miss Streak 3 | 1 3 2 3 . . Penetration Max . | . . . . . . Secondary Targets 1 | . 1 . . . . Max Gunslinging Chain 1 | . 1 . . . . Shots Hit Robots 136 | 16 71 18 22 7 2 Core Hits 58 | 6 29 7 11 4 1 Critical Kills . | . . . . . . Critical Parts Destroyed . | . . . . . . Critical Strikes 10 | . 6 2 1 1 . Burn 8 | . 6 2 . . . Blast 2 | . . . 1 1 . Melee Attacks 5 | . . . . . 5 Impact . | . . . . . . Slashing 5 | . . . . . 5 Piercing . | . . . . . . Sneak Attacks . | . . . . . . Combat Hostiles . | . . . . . . Follow-up Attacks . | . . . . . . Damage Inflicted 2226 | 164 1007 346 456 156 97 Guns 1129 | 164 875 77 13 . . Cannons 1000 | . 132 269 443 156 . Explosions . | . . . . . . Melee 97 | . . . . . 97 Ramming . | . . . . . . Kinetic 1559 | 164 527 269 443 156 . Thermal 570 | . 480 77 13 . . Explosive . | . . . . . . Electromagnetic . | . . . . . . Impact . | . . . . . . Slashing 97 | . . . . . 97 Piercing . | . . . . . . Highest Corruption 1 | . 1 1 1 1 . Average Corruption 1 | . 1 1 1 1 . Corruption Purged . | . . . . . . Corruption Blocked . | . . . . . . Effects 13 | . . 3 2 8 . Message Errors 3 | . . 1 . 2 . Matter Fused 3 | . . 1 1 1 . Heat Flow Errors 4 | . . . . 4 . Energy Discharges 1 | . . 1 . . . Data Loss (minor) 1 | . . . 1 . . Alerts 1 | . . . . 1 . Overload Shots . | . . . . . . Overflow Damage 3 | . . . 3 . . Projectiles 3 | . . . 3 . . Explosions . | . . . . . . Melee . | . . . . . . Knockbacks 9 | . 1 2 6 . . Impact . | . . . . . . Kinetic 9 | . 1 2 6 . . Secondary . | . . . . . . Self-Inflicted Damage . | . . . . . . Shots . | . . . . . . Rammed . | . . . . . . Targets Rammed . | . . . . . . Kicked . | . . . . . . Crushed . | . . . . . . Highest Temperature 311 | . 306 311 11 226 94 Average Temperature 98 | . 95 179 5 83 49 Received Heat Transfer 1158 | . 201 186 258 . 513 Effects 1 | . 1 . . . . Energy Bleed 1 | . 1 . . . . Siege Activations . | . . . . . . Martial Activations . | . . . . . . Shielding Activations . | . . . . . . Robots Disrupted . | . . . . . . Combat Hostiles . | . . . . . . Robots Corrupted . | . . . . . . Combat Hostiles . | . . . . . . Parts Fried . | . . . . . . Impact Corruptions . | . . . . . . Robots Melted . | . . . . . . Combat Hostiles . | . . . . . . Parts Melted 7 | . 7 . . . . Heat Transferred 2257 | . 1850 370 37 . . Parts Sabotaged . | . . . . . . Parts Stolen . | . . . . . . Parts Stripped . | . . . . . . Power Chain Reactions . | . . . . . . Alert | -11 -10 -10 -10 -8 -8 ------- Run | Yrd Mat Min Sub Rec Scr Maximum Alert Level . | . . . . . . Low Security (%) 100 | 100 100 100 . 100 . Level 1 . | . . . . . . Level 2 . | . . . . . . Level 3 . | . . . . . . Level 4 . | . . . . . . Level 5 . | . . . . . . High Security . | . . . . . . Max Security . | . . . . . . Peak Influence 133 | 10 133 90 . 70 . Initial 50 | . . . . 50 . Average 24 | 1 43 38 . 7 . Influence Increases 805 | 15 349 100 245 96 . Destroy 0b10 Robot/C 520 | . 240 80 140 60 . Destroy 0b10 Robot/NC 50 | 15 30 . . 5 . Destroy Leader 84 | . 64 20 . . . Successful Hack 46 | . 15 . . 31 . Lose Combat Pursuer 105 | . . . 105 . . Influence Decreases 805 | 15 349 100 140 201 . Entered New Map 55 | . . . . 55 . Time Decay 750 | 15 349 100 140 146 . Squads Dispatched 3 | . 3 . . . . Investigation 2 | . 2 . . . . Extermination . | . . . . . . Reinforcement 1 | . 1 . . . . Assault . | . . . . . . Garrison . | . . . . . . Intercept . | . . . . . . Searches Triggered . | . . . . . . Construction Impeded . | . . . . . . Haulers Reinforced . | . . . . . . Active Scanning Responses . | . . . . . . Cargo Convoy Interrupts . | . . . . . . Stealth | -11 -10 -10 -10 -8 -8 --------- Run | Yrd Mat Min Sub Rec Scr Distress Signals 1 | . 1 . . . . Communications Jammed . | . . . . . . Distress Signals . | . . . . . . Times Spotted 49 | . 25 4 12 1 7 Peak Tracking Total 6 | . 6 4 3 1 4 Tactical Retreats 4 | . . . 4 . . Traps | -11 -10 -10 -10 -8 -8 ------- Run | Yrd Mat Min Sub Rec Scr Traps Triggered 2 | . 2 . . . . Indirectly . | . . . . . . Trap Hack Attempts . | . . . . . . Triggered . | . . . . . . Disarmed . | . . . . . . Reprogrammed . | . . . . . . Reused . | . . . . . . Traps Extracted . | . . . . . . Installed . | . . . . . . Triggered . | . . . . . . Machines | -11 -10 -10 -10 -8 -8 ---------- Run | Yrd Mat Min Sub Rec Scr Machines Disabled 2 | . . . 2 . . Max in Single Turn 2 | . . . 2 . . Machines Repaired . | . . . . . . Machines Dismantled . | . . . . . . Machines Sabotaged . | . . . . . . Overloaded Fab Kills . | . . . . . . Hacking | -11 -10 -10 -10 -8 -8 --------- Run | Yrd Mat Min Sub Rec Scr Machines Accessed 17 | . 5 . . 4 8 Terminals 8 | . 4 . . 4 . Fabricators . | . . . . . . Repair Stations . | . . . . . . Recycling Units 1 | . 1 . . . . Scanalyzers . | . . . . . . Garrison Access . | . . . . . . Total Hacks 85 | . 13 . . 14 58 Successful 70 | . 5 . . 7 58 Failed 14 | . 7 . . 7 . Catastrophic 4 | . 2 . . 2 . Database Lockouts 1 | . 1 . . . . Manual 25 | . 13 . . 12 . Terminals 25 | . 11 . . 14 . Fabricators . | . . . . . . Repair Stations . | . . . . . . Recycling Units 2 | . 2 . . . . Scanalyzers . | . . . . . . Garrison Access . | . . . . . . Terminal Hacks 63 | . 2 . . 3 58 Record 53 | . . . . . 53 Part Schematic 1 | . . . . 1 . Robot Analysis 7 | . 2 . . 1 4 Prototype ID Bank 1 | . . . . 1 . Open Door 1 | . . . . . 1 Fabricator Hacks . | . . . . . . Repair Station Hacks . | . . . . . . Recycling Unit Hacks . | . . . . . . Scanalyzer . | . . . . . . Garrison Access Hacks . | . . . . . . Unauthorized Hacks 7 | . 3 . . 4 . Terminals 6 | . 2 . . 4 . Botnet 6 | . 2 . . 4 . Fabricators . | . . . . . . Repair Stations . | . . . . . . Recycling Units 1 | . 1 . . . . Mask 1 | . 1 . . . . Scanalyzers . | . . . . . . Garrison Access . | . . . . . . Data Cores Recovered . | . . . . . . Used . | . . . . . . Hacking Detections 7 | . 3 . . 4 . Full Trace Events 2 | . 1 . . 1 . Feedback Events . | . . . . . . Feedback Blocked . | . . . . . . Robot Schematics Acquired . | . . . . . . Robots Built . | . . . . . . Authchips . | . . . . . . Time . | . . . . . . Total Robot Build Rating . | . . . . . . Part Schematics Acquired 1 | . . . . 1 . Parts Built . | . . . . . . Authchips . | . . . . . . Time . | . . . . . . Total Part Build Rating . | . . . . . . Part Studies Acquired . | . . . . . . Parts Repaired . | . . . . . . Time . | . . . . . . Parts Recycled . | . . . . . . Recycled Matter . | . . . . . . Retrieved Matter . | . . . . . . Retrieved Components . | . . . . . . Parts Scanalyzed . | . . . . . . Part Schematics Acquired . | . . . . . . Parts Damaged . | . . . . . . Bothacking | -11 -10 -10 -10 -8 -8 ------------ Run | Yrd Mat Min Sub Rec Scr Used RIF Installer . | . . . . . . Robots Hacked . | . . . . . . Non-combat . | . . . . . . Combat . | . . . . . . Robot Hacks Applied . | . . . . . . Relay Couplers Released . | . . . . . . Fabnet Peak Effective % . | . . . . . . Robots Rewired . | . . . . . . Allies Hacked . | . . . . . . Hacks Repelled . | . . . . . . Allies | -11 -10 -10 -10 -8 -8 -------- Run | Yrd Mat Min Sub Rec Scr Total Allies . | . . . . . . Largest Group . | . . . . . . Highest-Rated Group . | . . . . . . Highest-Rated Ally . | . . . . . . Total Orders 1 | . . . . . 1 RETURN 1 | . . . . . 1 Ally Attacks . | . . . . . . Total Damage . | . . . . . . Kills . | . . . . . . Allies Corrupted . | . . . . . . Allies Melted 1 | . . . . . 1 Intel | -11 -10 -10 -10 -8 -8 ------- Run | Yrd Mat Min Sub Rec Scr Active Infowar (turns) 1263 | 15 234 174 118 . 722 Structural 722 | . . . . . 722 Seismic 541 | 15 234 174 118 . . Robot Analysis Total 7 | . 2 . . 1 4 Derelict Logs Recovered 3 | . . . 1 . 2 Drone Launches 3 | . . . . . 3 Drone Recoveries 3 | . . . . . 3 Exploration | -11 -10 -10 -10 -8 -8 ------------- Run | Yrd Mat Min Sub Rec Scr Turns Passed 7575 | 111 1020 229 294 1106 4815 Spaces Moved 4566 | 72 601 114 127 661 2991 Core 4 | 4 . . . . . Treads 26 | . 11 . 12 . 3 Legs . | . . . . . . Wheels 4536 | 68 590 114 115 661 2988 Hover . | . . . . . . Flight . | . . . . . . Fastest Speed 50 | 50 80 140 140 140 80 Average Speed 137 | 84 129 140 157 159 135 Slowest Speed 320 | 100 215 140 320 215 320 Overloaded Moves . | . . . . . . Propulsion Burnouts . | . . . . . . Robots Hopped . | . . . . . . Potential Cave-ins . | . . . . . . Cave-ins Triggered . | . . . . . . Exploration Rate (%) 51 | 5 71 39 8 96 91 Regions Visited 5 Branch Regions 4 Pre-discovered Areas 3 | . . . . . 3 Known Exits Taken . | . . . . . . Unknown Exits Taken 5 | 1 1 1 1 1 . Scrap Searched 2 | . . . . . 2 Spaces Dug . | . . . . . . Terrain Destroyed . | . . . . . . Melee . | . . . . . . Projectile . | . . . . . . AOE . | . . . . . . Terrain Rammed . | . . . . . . Walls Destroyed . | . . . . . . Machines Disabled . | . . . . . . Actions | -11 -10 -10 -10 -8 -8 --------- Run | Yrd Mat Min Sub Rec Scr Total 5637 | 100 739 161 171 711 3755 Wait 789 | 3 23 26 . 25 712 Move 4561 | 71 600 113 126 660 2991 Hop . | . . . . . . Pick Up 61 | 7 20 . 3 5 26 Fast Attach 10 | 7 1 . 1 . 1 Attach 8 | . 2 . . . 6 Detach 7 | . 3 . . 2 2 Swap 56 | 1 21 7 12 8 7 Drop 29 | 1 10 1 5 7 5 Fire 111 | 10 59 14 24 4 . Melee 5 | . . . . . 5 Ram . | . . . . . . Kick . | . . . . . . Crush . | . . . . . . Escape Stasis . | . . . . . . Rewire . | . . . . . . Trap . | . . . . . . Miscellaneous . | . . . . . . Route ------- -11/Scrapyard -10/Materials (discovered 3 exits: [*Mat x2] / [*Min]) -10/Mines -10/Subcaves -8/Recycling (discovered 2 exits: [*Fac] / *Scr) -8/Scraptown (discovered 2 exits: [*Fac x2]) History --------- Turn | Location | Event 7 | -11/Scrapyard | Discovered new exit (range 16) 112 | -11/Scrapyard | Entered Materials 302 | -10/Materials | Build established: Mutant 487 | -10/Materials | Discovered new exit (range 10) 747 | -10/Materials | Discovered new exit (range 16) 760 | -10/Materials | Central database locked down 970 | -10/Materials | Discovered new exit (range 16) 1132 | -10/Materials | Entered Mines 1349 | -10/Mines | Discovered new exit (range 9) 1361 | -10/Mines | Entered Subcaves 1362 | -10/Subcaves | Approached by a straggling Scientist 1375 | -10/Subcaves | Core integrity fell below 50% 1401 | -10/Subcaves | Lost 3 allies 1475 | -10/Subcaves | Build established: Scavenger-Mutant 1490 | -10/Subcaves | Discovered new exit (range 10) 1577 | -10/Subcaves | Shifting Twisted Machinery released Riot Gun 1655 | -10/Subcaves | Entered Recycling 1776 | -8/Recycling | Build established: Mutant 2123 | -8/Recycling | Discovered new exit (range 15) 2706 | -8/Recycling | Scanned before Scraplab entrance 2736 | -8/Recycling | Entered Scraplab 2758 | -8/Recycling | Discovered new exit (range 3) 2761 | -8/Recycling | Entered Scraptown 2761 | -8/Scraptown | System corruption cleaned by C-Scrubber 3128 | -8/Scraptown | Scanned Subdweller tech in exchange for log data 3130 | -8/Scraptown | Learned Research security intel 3156 | -8/Scraptown | Discovered new exit (range 5) 3272 | -8/Scraptown | Visited Spacefarers 3350 | -8/Scraptown | Visited Symbiants 3396 | -8/Scraptown | Visited CPS Storage 3422 | -8/Scraptown | Visited UFD Registry 3422 | -8/Scraptown | Registered with UFD as "Pipelever" 3447 | -8/Scraptown | Visited Fellowship of the Rings 3482 | -8/Scraptown | Visited Shadow of the Wyrm 3508 | -8/Scraptown | Visited Red Mages 3562 | -8/Scraptown | Visited SPCMW 3823 | -8/Scraptown | Visited Cartography Club 5537 | -8/Scraptown | Visited Sword Containment 5706 | -8/Scraptown | Visited Modified Component R&D 5782 | -8/Scraptown | Discovered new exit (range 11) 5821 | -8/Scraptown | Visited A0-MCA Data Center 5829 | -8/Scraptown | Given a B rating by A0-MCA 5878 | -8/Scraptown | Visited Botcube Research 6573 | -8/Scraptown | Learned location of Recycling (-8) 6573 | -8/Scraptown | Learned location of Archives (-6) 6573 | -8/Scraptown | Learned 16 Materials zone layouts 6573 | -8/Scraptown | Learned 8 Lower Caves zone layouts 6573 | -8/Scraptown | Learned 20 Lower Caves zone layouts 6573 | -8/Scraptown | Learned 16 Lower Caves zone layouts 6573 | -8/Scraptown | Learned 8 Upper Caves zone layouts 6573 | -8/Scraptown | Learned 8 Proximity Caves zone layouts 6573 | -8/Scraptown | Learned 16 Proximity Caves zone layouts 6573 | -8/Scraptown | Learned Materials emergency access door positions 6573 | -8/Scraptown | Learned location of 3 exits from Factory 6573 | -8/Scraptown | Learned location of 2 exits from Research 6573 | -8/Scraptown | Learned location of 3 exits from Proximity Caves 6641 | -8/Scraptown | Found Deep Structural Scanner 7141 | -8/Scraptown | Guru changed UFD alias to "Datacutter" 7372 | -8/Scraptown | Met Optimus 7372 | -8/Scraptown | Accepted into 0bPrime 7416 | -8/Scraptown | Visited Analyses Database 7446 | -8/Scraptown | Visited Infowarlord's Domain 7483 | -8/Scraptown | Civil war broke out across Scraptown 7491 | -8/Scraptown | Found Prototype Slashing Weapon 7496 | -8/Scraptown | Identified Companion Sword 7553 | -8/Scraptown | Core integrity fell below 20% 7576 | -8/Scraptown | Destroyed by U7-A0R(g) with Salvaging Laser Last Messages --------------- 07528_ 6T-Z57(E) destroyed. Companion Sword: "If you've got this Imp. Light Cannon, why do you need me, huh?" 07536_ TT-DAP(p) switches sides: "I don't know who to fight for!" 07543_ LU-A25(g) IFF system glitched. Companion Sword: "I'm not really a sword, you know. I just look, attack, and talk like one." 07544_ TT-DAP(p) destroyed. 07547_ Acquired 10 matter. 07555_ Machine disabled. 07558_ Critical hit (Burn: +50). 07561_ LU-A25(g) destroyed. 07565_ SD-OFZ(x): "We're going to need a new survey of Scraptown after this." 07565_ Wheel destroyed. 07568_ Critical hit (Burn: +50). 07572_ Acquired 20 matter. 07575_ YT-Y29(j) heat spikes uncontrollably. 07576_ Lgt. Treads destroyed. 07576_ Critical hit (Burn: +50). Map ----- +----------------------------------------------------+ | " "" ###########"" "## ############# | | "" X"##########"" "## ############# | | " ######### #"" "## ############# | | "" ############# | | "" "## ############# | | " ######### #"" "####################### | | "" ""##########"" "###############?####### | | " "" ###########"" "##################?#### | | X"##########"" "######################? | | ###########"" "##############?#####??? | | # ################"" =!"## """"##########?#??? | | """"""""""""""""""""" [%!"## """"#######?#?????? | | """"""""""""""""""""" =[=! " "#########?#???? | | !%"## ""########?###?#? | | ="## "#############?? | | ## X"#############?? | | [= ==%## " "#############?? | | %= =[%!# """"##############? | | """"" """"""""""" """"" =!!####################### | | ##### ########### ######*%[####################### | | ###" "### ##%!=####################### | | ###" ""### ##=!=####################### | | ###""] !!"###"" "##%[=####################### | | ###""] !!"###""!!! " ##[!%####################### | | ###"]] "### /!"" "##=%[####################### | | ###""" ""### /""" ""## @ ####################### | | ######################## j g # ######### | | ######################## ## ####### | | #######################; j # ######## | | ######################## # ####### | | ######################## *[! # ####### ## | | ########################!=%####################### | | ######################## =!####################### | | """##"""##"""##"""##"|"# """"################### | | ""##" "##"""##""|##" # "" "################### | | "################### | | " "################### | | """"################### | | """##"" ##" "##!! ##""|## ######################## | | """##"""##"""##"""##"""########################### | | #################################################? | | #################################################? | | ###############################################??? | | ###########?##############################??##???? | | ###############?#############################????? | | ##########################################?#?????? | | #########################################????????? | | ##############################?####?#?##?????????? | | #########?#############?#######?##???????????????? | | #####?###################?##?####????????????????? | +----------------------------------------------------+ Best States ------------- Heat Dissipation 39 Energy Generation 10 Energy Capacity 250 Matter Stores 300 Matter Capacity 300 Sight Range 16 Terrain Scan Density 10 Armor Coverage 150 Evasion (%) 44 Recoil Reduction 2 Item Schematics ----------------- Arm. Wheel | -8/Recycling | Hacked Robot Schematics ------------------ None Fabricated ------------ Nothing Repaired ---------- Nothing Studied --------- None Alien Tech Used ----------------- None Achievements -------------- Longdome?! Challenges ------------ None Game ------ Seed MiningBoreRay Manual? 0 Play Time 00:48:46 Cumulative 117.4 hours Start 2026.01.13 @ 22:43:13 End 2026.01.13 @ 23:37:30 Sessions 1 Manual Loads 0 Difficulty Rogue Special Mode None Game No. 123 Rogue 123 Adventurer 0 Explorer 0 Win Type - Total 0 Types 0/0/0/0/0/0/0/0/0/0 Lore% 64 Gallery% 49 Achievement% 40 Wizard Run 0 Options --------- Layout 0 ASCII 0 Keyboard 1 Movement Vi Keybinds 0 Fullscreen 2 Font 18/SmallcapsGlow Map View 76x50 Zoom Use 0% Tactical HUD 1 Map Filters NONE Filters NONE Steam 1 RUN: 6a4fab89-6463-47c7-8b20-b71980d4fdac